[Event "Titled Tuesday Blitz May 10 Late 2022"]
[White "Sanchez Alvares, Kelvin Antonio"]
[Black "Gomez Dieguez, David"]
[WhiteFideId "3906680"]
[BlackFideId "22223630"]
[WhiteElo "2193"]
[BlackElo "2115"]
[Result "1-0"]
[Round "05"]
[TimeControl "180+1"]
[Date "2022.05.11"]
[WhiteClock "0:02:33"]
[BlackClock "0:02:34"]

1. d4 {[%clk 0:03:00]}  Nf6 {[%clk 0:02:59]} 2. c4 {[%clk 0:03:00]}  e6 {[%clk 0:02:59]} 3. Nf3 {[%clk 0:03:00]}  d5 {[%clk 0:02:59]} 4. Nc3 {[%clk 0:02:59]}  c5 {[%clk 0:02:59]} 5. cxd5 {[%clk 0:02:59]}  Nxd5 {[%clk 0:03:00]} 6. e4 {[%clk 0:02:59]}  Nxc3 {[%clk 0:03:00]} 7. bxc3 {[%clk 0:03:00]}  cxd4 {[%clk 0:03:01]} 8. cxd4 {[%clk 0:03:01]}  Bb4+ {[%clk 0:03:01]} 9. Bd2 {[%clk 0:03:01]}  Bxd2+ {[%clk 0:03:01]} 10. Qxd2 {[%clk 0:03:02]}  O-O {[%clk 0:03:02]} 11. Bd3 {[%clk 0:02:56]}  Nc6 {[%clk 0:03:01]} 12. Bb5 {[%clk 0:02:48]}  Bd7 {[%clk 0:02:55]} 13. O-O {[%clk 0:02:47]}  a6 {[%clk 0:02:54]} 14. Bd3 {[%clk 0:02:46]}  Qa5 {[%clk 0:02:52]} 15. Qe3 {[%clk 0:02:36]}  Qa3 {[%clk 0:02:45]} 16. e5 {[%clk 0:02:34]}  Nb4 {[%clk 0:02:37]} 17. Bxh7+ {[%clk 0:02:33]}  Kxh7 {[%clk 0:02:34]} 18. Qxa3 {[%clk 0:02:33]} 1-0


[Site "https://www.chess.com"]

[Event "Titled Tuesday Blitz May 10 Late 2022"]
[White "Svane, Frederik"]
[Black "Arabidze, Meri"]
[WhiteFideId "12923044"]
[BlackFideId "13604040"]
[WhiteElo "2459"]
[BlackElo "2335"]
[Result "1-0"]
[Round "05"]
[TimeControl "180+1"]
[Date "2022.05.10"]
[WhiteClock "0:02:31"]
[BlackClock "0:00:16"]

1. e4 {[%clk 0:02:56]}  c5 {[%clk 0:02:59]} 2. Nf3 {[%clk 0:02:56]}  e6 {[%clk 0:02:59]} 3. d4 {[%clk 0:02:56]}  cxd4 {[%clk 0:02:59]} 4. Nxd4 {[%clk 0:02:57]}  Nc6 {[%clk 0:02:59]} 5. Be2 {[%clk 0:02:58]}  d6 {[%clk 0:02:54]} 6. O-O {[%clk 0:02:57]}  Nf6 {[%clk 0:02:53]} 7. Nc3 {[%clk 0:02:56]}  Be7 {[%clk 0:02:54]} 8. Be3 {[%clk 0:02:53]}  O-O {[%clk 0:02:53]} 9. f4 {[%clk 0:02:53]}  a6 {[%clk 0:02:54]} 10. Kh1 {[%clk 0:02:53]}  Nxd4 {[%clk 0:02:49]} 11. Bxd4 {[%clk 0:02:53]}  b5 {[%clk 0:02:49]} 12. a3 {[%clk 0:02:53]}  Bb7 {[%clk 0:02:50]} 13. Bf3 {[%clk 0:02:50]}  Qc7 {[%clk 0:02:48]} 14. Qe1 {[%clk 0:02:48]}  Rfe8 {[%clk 0:02:45]} 15. Qg3 {[%clk 0:02:46]}  g6 {[%clk 0:02:42]} 16. f5 {[%clk 0:02:44]}  e5 {[%clk 0:02:40]} 17. Be3 {[%clk 0:02:44]}  Rac8 {[%clk 0:02:30]} 18. Rad1 {[%clk 0:02:44]}  Qb8 {[%clk 0:02:25]} 19. Bg5 {[%clk 0:02:41]}  Rxc3 {[%clk 0:01:52]} 20. bxc3 {[%clk 0:02:42]}  Qc7 {[%clk 0:01:14]} 21. Qh4 {[%clk 0:02:41]}  Kg7 {[%clk 0:00:39]} 22. Be2 {[%clk 0:02:34]}  Ng8 {[%clk 0:00:32]} 23. f6+ {[%clk 0:02:34]}  Nxf6 {[%clk 0:00:27]} 24. Bxf6+ {[%clk 0:02:35]}  Bxf6 {[%clk 0:00:27]} 25. Qxf6+ {[%clk 0:02:36]}  Kg8 {[%clk 0:00:27]} 26. Rxd6 {[%clk 0:02:32]}  Bxe4 {[%clk 0:00:26]} 27. Bg4 {[%clk 0:02:31]}  Qb7 {[%clk 0:00:16]} 28. Rd7 {[%clk 0:02:31]} 1-0


[Site "https://www.chess.com"]

[Event "Titled Tuesday Blitz May 10 Late 2022"]
[White "Szabo, Marton Mihaly"]
[Black "Martinez Alcantara, Jose Eduardo"]
[WhiteFideId "787086"]
[BlackFideId "3805662"]
[WhiteElo "1984"]
[BlackElo "2690"]
[Result "0-1"]
[Round "05"]
[TimeControl "180+1"]
[Date "2022.05.10"]
[WhiteClock "0:00:01"]
[BlackClock "0:00:10"]

1. e4 {[%clk 0:03:00]}  c5 {[%clk 0:02:58]} 2. c4 {[%clk 0:03:00]}  d6 {[%clk 0:02:58]} 3. Nc3 {[%clk 0:03:01]}  Nc6 {[%clk 0:02:58]} 4. g3 {[%clk 0:03:01]}  g6 {[%clk 0:02:58]} 5. Bg2 {[%clk 0:03:02]}  Bg7 {[%clk 0:02:59]} 6. Nge2 {[%clk 0:03:02]}  Bg4 {[%clk 0:02:57]} 7. O-O {[%clk 0:03:02]}  Bxe2 {[%clk 0:02:58]} 8. Nxe2 {[%clk 0:03:02]}  e6 {[%clk 0:02:58]} 9. d3 {[%clk 0:03:02]}  Nge7 {[%clk 0:02:59]} 10. Rb1 {[%clk 0:03:02]}  O-O {[%clk 0:02:59]} 11. a3 {[%clk 0:03:03]}  a5 {[%clk 0:02:46]} 12. Be3 {[%clk 0:03:03]}  Qb6 {[%clk 0:02:35]} 13. Qd2 {[%clk 0:02:54]}  a4 {[%clk 0:02:34]} 14. Bh6 {[%clk 0:02:52]}  Qa5 {[%clk 0:02:22]} 15. Qc1 {[%clk 0:02:48]}  Rac8 {[%clk 0:01:48]} 16. Bxg7 {[%clk 0:02:48]}  Kxg7 {[%clk 0:01:49]} 17. Qc3+ {[%clk 0:02:39]}  Qxc3 {[%clk 0:01:42]} 18. bxc3 {[%clk 0:02:40]}  Rc7 {[%clk 0:01:40]} 19. Rb5 {[%clk 0:02:39]}  Ne5 {[%clk 0:01:37]} 20. Rd1 {[%clk 0:02:32]}  Nd7 {[%clk 0:01:36]} 21. Bf1 {[%clk 0:02:13]}  g5 {[%clk 0:01:24]} 22. d4 {[%clk 0:02:00]}  b6 {[%clk 0:01:04]} 23. dxc5 {[%clk 0:01:39]}  dxc5 {[%clk 0:01:05]} 24. f4 {[%clk 0:01:39]}  gxf4 {[%clk 0:00:58]} 25. gxf4 {[%clk 0:01:40]}  Ng6 {[%clk 0:00:48]} 26. Kf2 {[%clk 0:01:36]}  h6 {[%clk 0:00:48]} 27. Ke3 {[%clk 0:01:36]}  Nf6 {[%clk 0:00:42]} 28. h3 {[%clk 0:01:31]}  Rb8 {[%clk 0:00:42]} 29. Rd6 {[%clk 0:01:30]}  Nd7 {[%clk 0:00:37]} 30. Ng3 {[%clk 0:01:22]}  Kf8 {[%clk 0:00:37]} 31. Be2 {[%clk 0:01:14]}  Ke7 {[%clk 0:00:36]} 32. e5 {[%clk 0:01:14]}  Rg8 {[%clk 0:00:28]} 33. Ne4 {[%clk 0:01:09]}  Nh4 {[%clk 0:00:28]} 34. Rxd7+ {[%clk 0:00:52]}  Rxd7 {[%clk 0:00:29]} 35. Nf6 {[%clk 0:00:51]}  Rg3+ {[%clk 0:00:29]} 36. Kf2 {[%clk 0:00:39]}  Rg2+ {[%clk 0:00:30]} 37. Ke1 {[%clk 0:00:39]}  Rb7 {[%clk 0:00:21]} 38. Ne4 {[%clk 0:00:32]}  Rh2 {[%clk 0:00:13]} 39. Nd6 {[%clk 0:00:30]}  Rb8 {[%clk 0:00:12]} 40. Bh5 {[%clk 0:00:02]}  Ng2+ {[%clk 0:00:12]} 41. Kf1 {[%clk 0:00:03]}  Nxf4 {[%clk 0:00:13]} 42. Bxf7 {[%clk 0:00:02]}  Rxh3 {[%clk 0:00:12]} 43. Kf2 {[%clk 0:00:02]}  Rxc3 {[%clk 0:00:13]} 44. Bxe6 {[%clk 0:00:01]}  Kxe6 {[%clk 0:00:13]} 45. Ne4 {[%clk 0:00:01]}  Rxc4 {[%clk 0:00:10]} 0-1


[Site "https://www.chess.com"]

[Event "Titled Tuesday Blitz May 10 Late 2022"]
[White "Tatarinov, Dmitry"]
[Black "Dilmukhametov, Artur"]
[WhiteFideId "24160067"]
[BlackFideId "24179922"]
[WhiteElo "2302"]
[BlackElo "2206"]
[Result "0-1"]
[Round "05"]
[TimeControl "180+1"]
[Date "2022.05.11"]
[WhiteClock "0:00:39"]
[BlackClock "0:00:57"]

1. d4 {[%clk 0:03:00]}  d5 {[%clk 0:02:52]} 2. c4 {[%clk 0:02:59]}  dxc4 {[%clk 0:02:53]} 3. e3 {[%clk 0:02:58]}  Nf6 {[%clk 0:02:51]} 4. Bxc4 {[%clk 0:02:58]}  a6 {[%clk 0:02:52]} 5. Nf3 {[%clk 0:02:57]}  b5 {[%clk 0:02:51]} 6. Be2 {[%clk 0:02:56]}  Bb7 {[%clk 0:02:52]} 7. O-O {[%clk 0:02:57]}  e6 {[%clk 0:02:49]} 8. a4 {[%clk 0:02:56]}  b4 {[%clk 0:02:48]} 9. Nbd2 {[%clk 0:02:55]}  c5 {[%clk 0:02:48]} 10. dxc5 {[%clk 0:02:54]}  Nbd7 {[%clk 0:02:47]} 11. Nb3 {[%clk 0:02:55]}  Nxc5 {[%clk 0:02:40]} 12. Nfd2 {[%clk 0:02:54]}  Be7 {[%clk 0:02:31]} 13. Nxc5 {[%clk 0:02:54]}  Bxc5 {[%clk 0:02:32]} 14. Nb3 {[%clk 0:02:55]}  Bd6 {[%clk 0:02:29]} 15. Bf3 {[%clk 0:02:51]}  Bxf3 {[%clk 0:02:17]} 16. Qxf3 {[%clk 0:02:52]}  O-O {[%clk 0:02:18]} 17. a5 {[%clk 0:02:46]}  Qc7 {[%clk 0:02:13]} 18. h3 {[%clk 0:02:45]}  Be5 {[%clk 0:02:04]} 19. Qe2 {[%clk 0:02:37]}  Rfd8 {[%clk 0:01:56]} 20. f4 {[%clk 0:02:07]}  Bd6 {[%clk 0:01:54]} 21. e4 {[%clk 0:02:07]}  Bc5+ {[%clk 0:01:33]} 22. Kh1 {[%clk 0:02:06]}  Ba7 {[%clk 0:01:32]} 23. Bd2 {[%clk 0:02:01]}  Qc2 {[%clk 0:01:29]} 24. Rae1 {[%clk 0:01:25]}  Qxb3 {[%clk 0:01:27]} 25. Bc1 {[%clk 0:01:16]}  Rd3 {[%clk 0:01:14]} 26. e5 {[%clk 0:01:07]}  Ne4 {[%clk 0:01:11]} 27. Kh2 {[%clk 0:00:41]}  Rxh3+ {[%clk 0:00:55]} 28. gxh3 {[%clk 0:00:40]}  Qg3+ {[%clk 0:00:56]} 29. Kh1 {[%clk 0:00:41]}  Qxh3+ {[%clk 0:00:56]} 30. Qh2 {[%clk 0:00:39]}  Ng3# {[%clk 0:00:57]} 0-1


[Site "https://www.chess.com"]

[Event "Titled Tuesday Blitz May 10 Late 2022"]
[White "Vajda, Levente"]
[Black "Maghsoodloo, Parham"]
[WhiteFideId "1203975"]
[BlackFideId "12539929"]
[WhiteElo "2573"]
[BlackElo "2630"]
[Result "0-1"]
[Round "05"]
[TimeControl "180+1"]
[Date "2022.05.10"]
[WhiteClock "0:00:19"]
[BlackClock "0:01:53"]

1. e4 {[%clk 0:03:00]}  c5 {[%clk 0:02:58]} 2. c3 {[%clk 0:03:00]}  d5 {[%clk 0:02:57]} 3. exd5 {[%clk 0:03:01]}  Qxd5 {[%clk 0:02:58]} 4. d4 {[%clk 0:03:01]}  g6 {[%clk 0:02:57]} 5. Nf3 {[%clk 0:03:01]}  Nc6 {[%clk 0:02:58]} 6. Be3 {[%clk 0:03:02]}  Bh6 {[%clk 0:02:58]} 7. Na3 {[%clk 0:02:55]}  cxd4 {[%clk 0:02:55]} 8. Nb5 {[%clk 0:02:50]}  Qd8 {[%clk 0:02:54]} 9. Nfxd4 {[%clk 0:02:40]}  Bxe3 {[%clk 0:02:52]} 10. fxe3 {[%clk 0:02:40]}  Bd7 {[%clk 0:02:49]} 11. Nxc6 {[%clk 0:02:31]}  bxc6 {[%clk 0:02:48]} 12. Nd4 {[%clk 0:02:17]}  Nf6 {[%clk 0:02:48]} 13. Bc4 {[%clk 0:02:15]}  Qb8 {[%clk 0:02:45]} 14. Nb3 {[%clk 0:01:51]}  O-O {[%clk 0:02:40]} 15. Qf3 {[%clk 0:01:41]}  a5 {[%clk 0:02:35]} 16. O-O {[%clk 0:01:33]}  a4 {[%clk 0:02:34]} 17. Nc5 {[%clk 0:01:33]}  Qxb2 {[%clk 0:02:35]} 18. Nxd7 {[%clk 0:01:29]}  Nxd7 {[%clk 0:02:35]} 19. Bxf7+ {[%clk 0:01:23]}  Kg7 {[%clk 0:02:35]} 20. Qxc6 {[%clk 0:01:23]}  Ne5 {[%clk 0:02:35]} 21. Qd5 {[%clk 0:00:59]}  Nxf7 {[%clk 0:02:36]} 22. Rab1 {[%clk 0:00:59]}  Qxc3 {[%clk 0:02:35]} 23. Rxf7+ {[%clk 0:00:45]}  Rxf7 {[%clk 0:02:35]} 24. Qxa8 {[%clk 0:00:46]}  Qc2 {[%clk 0:01:59]} 25. Rf1 {[%clk 0:00:37]}  Rxf1+ {[%clk 0:01:59]} 26. Kxf1 {[%clk 0:00:37]}  Qb1+ {[%clk 0:02:00]} 27. Kf2 {[%clk 0:00:36]}  Qxa2+ {[%clk 0:02:00]} 28. Kg3 {[%clk 0:00:36]}  Qa3 {[%clk 0:01:59]} 29. Qa7 {[%clk 0:00:31]}  Qd6+ {[%clk 0:01:58]} 30. Kf3 {[%clk 0:00:31]}  a3 {[%clk 0:01:58]} 31. h4 {[%clk 0:00:29]}  Kf7 {[%clk 0:01:57]} 32. g4 {[%clk 0:00:28]}  Qd5+ {[%clk 0:01:57]} 33. e4 {[%clk 0:00:26]}  Qb3+ {[%clk 0:01:57]} 34. Kf4 {[%clk 0:00:24]}  a2 {[%clk 0:01:57]} 35. Qa5 {[%clk 0:00:19]}  Qc4 {[%clk 0:01:53]} 0-1


[Site "https://www.chess.com"]

[Event "Titled Tuesday Blitz May 10 Late 2022"]
[White "Vovk, Orest"]
[Black "Postny, Evgeny"]
[WhiteFideId "14113490"]
[BlackFideId "2804344"]
[WhiteElo "2203"]
[BlackElo "2500"]
[Result "0-1"]
[Round "05"]
[TimeControl "180+1"]
[Date "2022.05.11"]
[WhiteClock "0:00:06"]
[BlackClock "0:00:06"]

1. g4 {[%clk 0:02:55]}  d5 {[%clk 0:03:00]} 2. h3 {[%clk 0:02:51]}  e5 {[%clk 0:02:59]} 3. Bg2 {[%clk 0:02:52]}  Nf6 {[%clk 0:02:58]} 4. c4 {[%clk 0:02:45]}  d4 {[%clk 0:02:57]} 5. d3 {[%clk 0:02:45]}  Nc6 {[%clk 0:02:56]} 6. Bxc6+ {[%clk 0:02:45]}  bxc6 {[%clk 0:02:56]} 7. Qa4 {[%clk 0:02:46]}  Bd7 {[%clk 0:02:52]} 8. Nf3 {[%clk 0:02:45]}  c5 {[%clk 0:02:50]} 9. Qa6 {[%clk 0:02:45]}  Bd6 {[%clk 0:02:46]} 10. Nbd2 {[%clk 0:02:42]}  O-O {[%clk 0:02:44]} 11. g5 {[%clk 0:02:42]}  Nh5 {[%clk 0:02:40]} 12. Ne4 {[%clk 0:02:42]}  Qe7 {[%clk 0:02:38]} 13. Rg1 {[%clk 0:02:37]}  Rfb8 {[%clk 0:02:31]} 14. a3 {[%clk 0:01:50]}  Rb6 {[%clk 0:02:14]} 15. Qa5 {[%clk 0:01:49]}  Bc6 {[%clk 0:02:00]} 16. Nfd2 {[%clk 0:01:49]}  Bb7 {[%clk 0:01:39]} 17. b4 {[%clk 0:01:14]}  Ra6 {[%clk 0:01:38]} 18. Qb5 {[%clk 0:01:14]}  c6 {[%clk 0:01:39]} 19. Qxb7 {[%clk 0:01:13]}  Qxb7 {[%clk 0:01:39]} 20. Nxd6 {[%clk 0:01:13]}  Qd7 {[%clk 0:01:28]} 21. bxc5 {[%clk 0:01:07]}  Qxh3 {[%clk 0:01:24]} 22. N2e4 {[%clk 0:01:01]}  Rb8 {[%clk 0:01:18]} 23. Nf6+ {[%clk 0:00:20]}  Nxf6 {[%clk 0:01:01]} 24. gxf6 {[%clk 0:00:21]}  g6 {[%clk 0:01:00]} 25. Ne4 {[%clk 0:00:17]}  Qh2 {[%clk 0:00:45]} 26. Kf1 {[%clk 0:00:14]}  Qh3+ {[%clk 0:00:40]} 27. Rg2 {[%clk 0:00:13]}  h5 {[%clk 0:00:23]} 28. f3 {[%clk 0:00:09]}  Rb3 {[%clk 0:00:21]} 29. Kf2 {[%clk 0:00:07]}  Ra4 {[%clk 0:00:19]} 30. Bg5 {[%clk 0:00:04]}  Raxa3 {[%clk 0:00:17]} 31. Rag1 {[%clk 0:00:03]}  Ra2 {[%clk 0:00:16]} 32. Rg3 {[%clk 0:00:03]}  Qh2+ {[%clk 0:00:16]} 33. R1g2 {[%clk 0:00:03]}  Qh1 {[%clk 0:00:12]} 34. Rg1 {[%clk 0:00:03]}  Qh2+ {[%clk 0:00:09]} 35. R1g2 {[%clk 0:00:04]}  Qxg2+ {[%clk 0:00:02]} 36. Rxg2 {[%clk 0:00:03]}  Rxd3 {[%clk 0:00:03]} 37. Kg3 {[%clk 0:00:03]}  Rb3 {[%clk 0:00:03]} 38. Nd6 {[%clk 0:00:04]}  Rbb2 {[%clk 0:00:03]} 39. f4 {[%clk 0:00:04]}  Rxe2 {[%clk 0:00:03]} 40. Rxe2 {[%clk 0:00:04]}  Rxe2 {[%clk 0:00:04]} 41. fxe5 {[%clk 0:00:04]}  Rxe5 {[%clk 0:00:04]} 42. Bf4 {[%clk 0:00:05]}  Rxc5 {[%clk 0:00:04]} 43. Kf3 {[%clk 0:00:05]}  a5 {[%clk 0:00:04]} 44. Ke4 {[%clk 0:00:05]}  a4 {[%clk 0:00:03]} 45. Kxd4 {[%clk 0:00:05]}  Ra5 {[%clk 0:00:03]} 46. Bd2 {[%clk 0:00:03]}  Ra8 {[%clk 0:00:03]} 47. Bc3 {[%clk 0:00:03]}  a3 {[%clk 0:00:03]} 48. Ba1 {[%clk 0:00:04]}  a2 {[%clk 0:00:04]} 49. c5 {[%clk 0:00:04]}  h4 {[%clk 0:00:04]} 50. Ne4 {[%clk 0:00:04]}  h3 {[%clk 0:00:04]} 51. Ng3 {[%clk 0:00:05]}  h2 {[%clk 0:00:05]} 52. Ke3 {[%clk 0:00:05]}  Ra3+ {[%clk 0:00:04]} 53. Kf2 {[%clk 0:00:05]}  Rxg3 {[%clk 0:00:05]} 54. Kxg3 {[%clk 0:00:06]}  h1=Q {[%clk 0:00:06]} 55. Kf4 {[%clk 0:00:06]}  Qd5 {[%clk 0:00:06]} 0-1


[Site "https://www.chess.com"]

[Event "Titled Tuesday Blitz May 10 Late 2022"]
[White "Wartiovaara, Oliver"]
[Black "Tomaszewski, Kacper"]
[WhiteFideId "513024"]
[BlackFideId "1127373"]
[WhiteElo "1971"]
[BlackElo "2153"]
[Result "0-1"]
[Round "05"]
[TimeControl "180+1"]
[Date "2022.05.11"]
[WhiteClock "0:00:12"]
[BlackClock "0:00:57"]

1. e4 {[%clk 0:03:00]}  c5 {[%clk 0:03:00]} 2. Nf3 {[%clk 0:03:00]}  e6 {[%clk 0:03:00]} 3. d4 {[%clk 0:03:00]}  cxd4 {[%clk 0:03:01]} 4. Nxd4 {[%clk 0:03:00]}  a6 {[%clk 0:03:01]} 5. c4 {[%clk 0:02:59]}  Nf6 {[%clk 0:03:00]} 6. Nc3 {[%clk 0:02:59]}  Bb4 {[%clk 0:03:00]} 7. Qd3 {[%clk 0:02:59]}  Qc7 {[%clk 0:02:56]} 8. Nc2 {[%clk 0:02:14]}  Be7 {[%clk 0:02:53]} 9. Be2 {[%clk 0:02:11]}  O-O {[%clk 0:02:52]} 10. Qg3 {[%clk 0:02:06]}  d6 {[%clk 0:02:48]} 11. Bh6 {[%clk 0:01:59]}  Ne8 {[%clk 0:02:48]} 12. O-O {[%clk 0:01:55]}  Kh8 {[%clk 0:02:48]} 13. Be3 {[%clk 0:01:52]}  Nd7 {[%clk 0:02:45]} 14. Rad1 {[%clk 0:01:49]}  b6 {[%clk 0:02:44]} 15. f4 {[%clk 0:01:43]}  Bb7 {[%clk 0:02:43]} 16. f5 {[%clk 0:01:41]}  Nef6 {[%clk 0:02:36]} 17. fxe6 {[%clk 0:01:40]}  fxe6 {[%clk 0:02:37]} 18. Nd4 {[%clk 0:01:36]}  Nc5 {[%clk 0:02:31]} 19. b4 {[%clk 0:01:35]}  Nfxe4 {[%clk 0:02:26]} 20. Nxe4 {[%clk 0:01:36]}  Nxe4 {[%clk 0:02:21]} 21. Qxg7+ {[%clk 0:01:36]}  Kxg7 {[%clk 0:02:15]} 22. Nxe6+ {[%clk 0:01:37]}  Kg8 {[%clk 0:02:10]} 23. Nxc7 {[%clk 0:01:37]}  Nc3 {[%clk 0:02:02]} 24. Rde1 {[%clk 0:01:11]}  Nxe2+ {[%clk 0:02:00]} 25. Rxe2 {[%clk 0:01:12]}  Rxf1+ {[%clk 0:01:59]} 26. Kxf1 {[%clk 0:01:13]}  Rf8+ {[%clk 0:01:52]} 27. Rf2 {[%clk 0:01:11]}  Rc8 {[%clk 0:01:37]} 28. Nd5 {[%clk 0:00:51]}  Bxd5 {[%clk 0:01:34]} 29. cxd5 {[%clk 0:00:51]}  Rc4 {[%clk 0:01:27]} 30. Bxb6 {[%clk 0:00:34]}  Rxb4 {[%clk 0:01:26]} 31. Be3 {[%clk 0:00:33]}  Rb1+ {[%clk 0:01:17]} 32. Ke2 {[%clk 0:00:33]}  Rb5 {[%clk 0:01:17]} 33. Kf3 {[%clk 0:00:19]}  Rxd5 {[%clk 0:01:13]} 34. Rd2 {[%clk 0:00:19]}  Rxd2 {[%clk 0:01:05]} 35. Bxd2 {[%clk 0:00:20]}  Kf7 {[%clk 0:01:06]} 36. Ke4 {[%clk 0:00:19]}  Ke6 {[%clk 0:01:07]} 37. Bc3 {[%clk 0:00:18]}  d5+ {[%clk 0:01:07]} 38. Kd3 {[%clk 0:00:18]}  Bd6 {[%clk 0:01:06]} 39. g3 {[%clk 0:00:15]}  h5 {[%clk 0:01:04]} 40. Bd4 {[%clk 0:00:15]}  Kf5 {[%clk 0:01:01]} 41. Bg1 {[%clk 0:00:12]}  Be5 {[%clk 0:01:01]} 42. Bd4 {[%clk 0:00:11]}  Bc7 {[%clk 0:00:55]} 43. Bg1 {[%clk 0:00:09]}  Kg4 {[%clk 0:00:54]} 44. Kd4 {[%clk 0:00:08]}  Bb6+ {[%clk 0:00:54]} 45. Kxd5 {[%clk 0:00:07]}  Bxg1 {[%clk 0:00:55]} 46. Kc6 {[%clk 0:00:07]}  Bxh2 {[%clk 0:00:55]} 47. Kb6 {[%clk 0:00:08]}  Bxg3 {[%clk 0:00:55]} 48. Kxa6 {[%clk 0:00:09]}  h4 {[%clk 0:00:55]} 49. a4 {[%clk 0:00:10]}  h3 {[%clk 0:00:56]} 50. Kb7 {[%clk 0:00:11]}  h2 {[%clk 0:00:57]} 51. a5 {[%clk 0:00:11]}  h1=Q+ {[%clk 0:00:58]} 52. Ka6 {[%clk 0:00:10]}  Qa8+ {[%clk 0:00:57]} 53. Kb5 {[%clk 0:00:11]}  Bc7 {[%clk 0:00:57]} 54. a6 {[%clk 0:00:12]}  Qa7 {[%clk 0:00:57]} 0-1


[Site "https://www.chess.com"]

[Event "Titled Tuesday Blitz May 10 Late 2022"]
[White "Yedidia, Daniel"]
[Black "Demchenko, Anton"]
[WhiteFideId "30905907"]
[BlackFideId "4160258"]
[WhiteElo "2618"]
[BlackElo "2539"]
[Result "0-1"]
[Round "05"]
[TimeControl "180+1"]
[Date "2022.05.10"]
[WhiteClock "0:00:03"]
[BlackClock "0:00:05"]

1. d4 {[%clk 0:03:00]}  Nf6 {[%clk 0:02:59]} 2. c4 {[%clk 0:02:54]}  e6 {[%clk 0:02:58]} 3. Nc3 {[%clk 0:02:55]}  Bb4 {[%clk 0:02:57]} 4. e3 {[%clk 0:02:55]}  d5 {[%clk 0:02:55]} 5. Bd3 {[%clk 0:02:53]}  O-O {[%clk 0:02:52]} 6. Nf3 {[%clk 0:02:54]}  Nc6 {[%clk 0:02:52]} 7. O-O {[%clk 0:02:53]}  dxc4 {[%clk 0:02:49]} 8. Bxc4 {[%clk 0:02:54]}  Bd6 {[%clk 0:02:49]} 9. e4 {[%clk 0:02:51]}  e5 {[%clk 0:02:50]} 10. d5 {[%clk 0:02:43]}  Ne7 {[%clk 0:02:49]} 11. Bg5 {[%clk 0:02:29]}  Ng6 {[%clk 0:02:47]} 12. Be2 {[%clk 0:02:20]}  a6 {[%clk 0:02:45]} 13. Nd2 {[%clk 0:02:17]}  h6 {[%clk 0:02:43]} 14. Be3 {[%clk 0:02:18]}  Nh7 {[%clk 0:02:23]} 15. Nc4 {[%clk 0:02:16]}  Qf6 {[%clk 0:02:24]} 16. a4 {[%clk 0:02:11]}  Ng5 {[%clk 0:02:18]} 17. Bg4 {[%clk 0:01:57]}  Nf4 {[%clk 0:02:10]} 18. Bxc8 {[%clk 0:01:52]}  Raxc8 {[%clk 0:02:11]} 19. Qg4 {[%clk 0:01:36]}  Bb4 {[%clk 0:01:36]} 20. Nxe5 {[%clk 0:01:19]}  Qxe5 {[%clk 0:01:15]} 21. Bxf4 {[%clk 0:01:16]}  Qe7 {[%clk 0:01:14]} 22. Bxg5 {[%clk 0:01:11]}  Qxg5 {[%clk 0:01:10]} 23. Qxg5 {[%clk 0:01:10]}  hxg5 {[%clk 0:01:11]} 24. Rac1 {[%clk 0:01:08]}  g4 {[%clk 0:01:07]} 25. Rfe1 {[%clk 0:01:05]}  Rfe8 {[%clk 0:01:06]} 26. Re3 {[%clk 0:01:05]}  c6 {[%clk 0:01:00]} 27. Rd1 {[%clk 0:01:02]}  Bxc3 {[%clk 0:00:37]} 28. bxc3 {[%clk 0:00:49]}  cxd5 {[%clk 0:00:37]} 29. Rxd5 {[%clk 0:00:43]}  Rc4 {[%clk 0:00:35]} 30. Rd4 {[%clk 0:00:42]}  Rec8 {[%clk 0:00:34]} 31. g3 {[%clk 0:00:36]}  Kf8 {[%clk 0:00:29]} 32. e5 {[%clk 0:00:31]}  Ke7 {[%clk 0:00:27]} 33. Red3 {[%clk 0:00:27]}  R8c7 {[%clk 0:00:25]} 34. Kf1 {[%clk 0:00:18]}  Ke6 {[%clk 0:00:23]} 35. Rd6+ {[%clk 0:00:14]}  Kxe5 {[%clk 0:00:24]} 36. R3d5+ {[%clk 0:00:13]}  Ke4 {[%clk 0:00:24]} 37. Rd4+ {[%clk 0:00:13]}  Rxd4 {[%clk 0:00:22]} 38. Rxd4+ {[%clk 0:00:14]}  Kf5 {[%clk 0:00:22]} 39. Rf4+ {[%clk 0:00:14]}  Kg5 {[%clk 0:00:23]} 40. Ke2 {[%clk 0:00:11]}  f5 {[%clk 0:00:21]} 41. Kd3 {[%clk 0:00:12]}  Rd7+ {[%clk 0:00:20]} 42. Rd4 {[%clk 0:00:12]}  Re7 {[%clk 0:00:19]} 43. Rd6 {[%clk 0:00:11]}  g6 {[%clk 0:00:11]} 44. Rb6 {[%clk 0:00:09]}  Rh7 {[%clk 0:00:12]} 45. c4 {[%clk 0:00:08]}  Rxh2 {[%clk 0:00:11]} 46. Rxb7 {[%clk 0:00:09]}  Rxf2 {[%clk 0:00:12]} 47. c5 {[%clk 0:00:09]}  Rf3+ {[%clk 0:00:12]} 48. Kd4 {[%clk 0:00:08]}  Rxg3 {[%clk 0:00:12]} 49. c6 {[%clk 0:00:06]}  Rg1 {[%clk 0:00:12]} 50. Rb3 {[%clk 0:00:04]}  Re1 {[%clk 0:00:06]} 51. c7 {[%clk 0:00:03]}  Rd1+ {[%clk 0:00:02]} 52. Ke3 {[%clk 0:00:03]}  Rc1 {[%clk 0:00:02]} 53. Rb7 {[%clk 0:00:03]}  g3 {[%clk 0:00:03]} 54. Kf3 {[%clk 0:00:04]}  Rc3+ {[%clk 0:00:03]} 55. Kg2 {[%clk 0:00:04]}  Kg4 {[%clk 0:00:03]} 56. Rb4+ {[%clk 0:00:04]}  f4 {[%clk 0:00:04]} 57. Rb6 {[%clk 0:00:04]}  Rc2+ {[%clk 0:00:04]} 58. Kg1 {[%clk 0:00:03]}  Rxc7 {[%clk 0:00:05]} 59. Rxg6+ {[%clk 0:00:03]}  Kf3 {[%clk 0:00:05]} 0-1


[Site "https://www.chess.com"]